bitfinex/quotes_BTCUSD_20240712
["timestamp","ask_amount","ask_price","bid_price","bid_amount"]
[1720775654987,2.251453,57345.0,57344.0,0.09995026]
[1720775655382,2.239413,57345.0,57344.0,0.09995026]
[1720775656984,0.01204,57344.0,57343.0,0.09995026]
[1720775657226,0.348808,57338.0,57337.0,0.1]
[1720775657391,1.302328,57338.0,57337.0,0.1]
[1720775657596,1.889736,57338.0,57337.0,0.1]
[1720775658418,1.889736,57338.0,57337.0,0.105]
[1720775659221,1.889736,57338.0,57337.0,0.109]
[1720775659424,1.889736,57338.0,57337.0,0.009]
[1720775659425,1.901776,57338.0,57337.0,0.009]
[1720775659803,1.901776,57338.0,57337.0,0.01772067]
[1720775660207,1.901776,57338.0,57337.0,0.01272067]
[1720775660408,1.820276,57338.0,57337.0,0.11272067]
[1720775660610,1.889736,57338.0,57337.0,0.11672067]
[1720775661040,1.889736,57338.0,57337.0,0.21267093]
[1720775661483,1.889736,57338.0,57337.0,0.21567093]
[1720775662524,1.889736,57338.0,57337.0,0.107]
[1720775662720,1.889736,57338.0,57337.0,0.20695026]
[1720775664629,1.889736,57338.0,57334.0,0.10086326]
[1720775664630,0.52324,57335.0,57334.0,0.10086326]
[1720775664825,0.52324,57335.0,57321.0,0.0644]
[1720775664826,0.52324,57335.0,57324.0,0.29987201]
[1720775664827,0.312143,57325.0,57324.0,0.29987201]
[1720775665049,0.312143,57325.0,57323.0,0.09995026]
[1720775665050,0.250647,57324.0,57323.0,0.09995026]
[1720775665261,0.523368,57321.0,57320.0,0.19995026]
[1720775665463,1.302692,57321.0,57320.0,0.39987201]
[1720775665783,1.651604,57321.0,57320.0,0.39987201]
[1720775667251,1.652604,57321.0,57320.0,0.40687201]
[1720775667659,1.652604,57321.0,57320.0,0.41387201]
[1720775667660,1.653604,57321.0,57320.0,0.41387201]
[1720775667865,1.653604,57321.0,57320.0,0.51083201]
[1720775675192,1.653604,57321.0,57320.0,0.41387201]
[1720775675799,1.67422294,57321.0,57320.0,0.41387201]
[1720775676888,1.59272294,57321.0,57320.0,0.51083201]
[1720775677825,0.89489894,57321.0,57320.0,0.51083201]
[1720775678053,0.89489894,57321.0,57320.0,0.57083201]
[1720775678205,1.24381094,57321.0,57320.0,0.51083201]
[1720775678812,0.89489894,57321.0,57320.0,0.51083201]
[1720775679008,0.89489894,57321.0,57320.0,0.57083201]
[1720775679392,0.176456,57321.0,57320.0,0.77976521]
[1720775679744,0.002,57321.0,57320.0,0.86126521]
[1720775681697,0.002,57321.0,57320.0,0.98426521]
[1720775682507,0.001,57321.0,57320.0,0.97726521]
[1720775682709,0.174436,57328.0,57327.0,0.69543201]
[1720775682909,0.523305,57328.0,57327.0,0.70497521]
[1720775683120,1.221043,57328.0,57327.0,0.49683201]
[1720775684195,1.221043,57328.0,57327.0,0.50083201]
[1720775684399,1.221043,57328.0,57327.0,0.49983201]
[1720775685225,1.221043,57328.0,57327.0,0.50383201]
[1720775685628,1.221043,57328.0,57327.0,0.49983201]
[1720775686370,1.221043,57328.0,57327.0,0.50383201]
[1720775687224,1.221043,57328.0,57327.0,0.40787201]
[1720775687829,1.221043,57328.0,57327.0,0.50383201]
[1720775691641,1.221043,57328.0,57327.0,0.61611521]
[1720775691820,1.221043,57328.0,57327.0,0.67611521]
[1720775692454,0.523305,57328.0,57327.0,0.67611521]
[1720775692673,0.175246,57334.0,57333.0,0.39588175]
[1720775692876,0.972912,57334.0,57333.0,0.39588175]
[1720775693077,1.34000019,57334.0,57333.0,0.53688175]
[1720775693507,1.34000019,57334.0,57333.0,0.63683201]
[1720775694086,0.01908519,57334.0,57333.0,0.76651521]
[1720775694288,0.01908519,57334.0,57333.0,0.84801521]
[1720775694497,0.00083,57334.0,57333.0,0.84801521]
[1720775694705,0.00383,57334.0,57333.0,0.84801521]
[1720775695160,0.00083,57334.0,57333.0,0.84801521]
[1720775695368,0.00183,57334.0,57333.0,0.76651521]
[1720775695540,0.00083,57334.0,57333.0,0.86201521]
[1720775695979,0.00083,57334.0,57333.0,0.84801521]
[1720775696384,0.00083,57334.0,57333.0,0.86201521]
[1720775696588,0.00083,57334.0,57333.0,0.87601521]
[1720775696793,0.00083,57334.0,57333.0,0.99451521]
[1720775696941,0.00083,57334.0,57333.0,1.16893421]
[1720775698224,0.0017047,57334.0,57333.0,1.16893421]
[1720775698429,0.0017047,57334.0,57333.0,0.99451521]
[1720775698651,0.0017047,57334.0,57333.0,0.79451521]
[1720775700318,0.0017047,57334.0,57333.0,0.72483201]
[1720775700720,0.0017047,57334.0,57333.0,1.02483201]
[1720775700881,0.0017047,57334.0,57333.0,1.04783201]
[1720775701487,0.0017047,57334.0,57333.0,0.84783201]
[1720775701660,0.0017047,57334.0,57333.0,1.04783201]
[1720775701861,0.0017047,57334.0,57333.0,0.97112665]
[1720775702065,0.0017047,57334.0,57333.0,0.87112665]
[1720775702209,0.0017047,57334.0,57333.0,0.84812665]
[1720775703106,0.5249537,57334.0,57333.0,0.58573201]
[1720775703309,0.8737867,57334.0,57333.0,0.64573201]
[1720775703511,0.0017047,57334.0,57333.0,0.72133201]
[1720775703667,0.0017047,57334.0,57333.0,1.13346521]
[1720775704079,0.0017047,57334.0,57333.0,1.65672321]
[1720775704480,0.0017047,57334.0,57333.0,2.02856221]
[1720775706471,0.0017047,57334.0,57333.0,1.47972321]
[1720775707815,0.0017047,57334.0,57333.0,1.67972321]
[1720775709000,0.0017047,57334.0,57333.0,1.47972321]
[1720775709485,0.0017047,57334.0,57333.0,1.67972321]
[1720775717777,0.0017047,57334.0,57333.0,1.47972321]
[1720775717956,0.0017047,57334.0,57333.0,0.52383201]
[1720775717957,0.5249537,57334.0,57333.0,0.52383201]
[1720775718163,0.6674537,57334.0,57333.0,0.52383201]
[1720775718367,1.3651197,57334.0,57333.0,0.52383201]
[1720775719218,1.7139527,57334.0,57333.0,0.21395026]
[1720775719394,1.8139527,57334.0,57333.0,0.19995026]
[1720775719528,1.8139527,57334.0,57333.0,0.20795026]
[1720775719736,1.8139527,57334.0,57333.0,0.21595026]
[1720775719935,1.8139527,57334.0,57333.0,0.19995026]
[1720775720409,1.8139527,57334.0,57333.0,0.20495026]
[1720775720578,1.8139527,57334.0,57333.0,0.19995026]
[1720775721685,1.8139527,57334.0,57333.0,0.20495026]
[1720775722324,1.8139527,57334.0,57333.0,0.20895026]
[1720775725777,1.83429178,57334.0,57333.0,0.20895026]
[1720775726343,1.83429178,57334.0,57333.0,0.55531521]
[1720775726572,1.48545878,57334.0,57333.0,0.50483201]
[1720775726787,1.42495878,57334.0,57333.0,0.50483201]
[1720775726989,0.99412578,57334.0,57333.0,0.50483201]
[1720775728768,0.99412578,57334.0,57333.0,0.56483201]
[1720775729004,0.5249537,57334.0,57333.0,0.56483201]
[1720775729207,0.8737867,57334.0,57333.0,0.50483201]
[1720775730105,1.3035197,57334.0,57333.0,0.50483201]
[1720775730295,1.3035197,57334.0,57333.0,0.40887201]
[1720775730296,1.3695197,57334.0,57333.0,0.40887201]
[1720775730522,1.3695197,57334.0,57333.0,0.20895026]
[1720775731114,1.3695197,57334.0,57333.0,0.40887201]
[1720775731934,1.3695197,57334.0,57333.0,0.50483201]
[1720775734361,0.8737867,57334.0,57333.0,0.50483201]
[1720775734544,0.8737867,57334.0,57333.0,0.55531521]
[1720775734941,1.2226197,57334.0,57333.0,0.40887201]
[1720775736486,1.2226197,57334.0,57333.0,0.50483201]
[1720775736905,1.2844197,57334.0,57333.0,0.20895026]
[1720775737109,1.3613197,57334.0,57333.0,0.20895026]
[1720775737718,1.3613197,57334.0,57333.0,0.10895026]
[1720775738138,1.8231927,57334.0,57333.0,0.10895026]
[1720775738745,1.8101527,57334.0,57333.0,0.10895026]
[1720775738942,1.8101527,57334.0,57333.0,0.009]
[1720775739379,1.8101527,57334.0,57333.0,0.10895026]
[1720775742641,1.8231927,57334.0,57333.0,0.009]
[1720775743068,1.8231927,57334.0,57333.0,0.10895026]
[1720775744630,1.8101527,57334.0,57333.0,0.10895026]
[1720775744836,1.8231927,57334.0,57333.0,0.10895026]
[1720775746055,1.8231927,57334.0,57333.0,0.009]
[1720775749854,2.1720257,57334.0,57333.0,0.009]
[1720775750062,2.3422631,57334.0,57333.0,0.009]
[1720775750420,2.3422631,57334.0,57328.0,0.000913]
[1720775750421,0.536334,57329.0,57328.0,0.000913]
[1720775750622,0.779234,57329.0,57328.0,0.000913]
[1720775750869,1.47696,57329.0,57328.0,0.000913]
[1720775751070,2.29706523,57329.0,57328.0,0.000913]
[1720775751444,2.161646,57329.0,57328.0,0.000913]
[1720775751677,2.162646,57329.0,57328.0,0.011913]
[1720775752081,1.93216751,57329.0,57328.0,0.011913]
[1720775752256,2.10747321,57329.0,57328.0,0.011913]
[1720775752986,2.10847321,57329.0,57328.0,0.022913]
[1720775753384,2.17843721,57329.0,57328.0,0.022913]
[1720775756523,2.34867461,57329.0,57328.0,0.022913]
[1720775758507,2.17843721,57329.0,57328.0,0.022913]
[1720775758712,2.17743721,57329.0,57328.0,0.011913]
[1720775758922,2.17743721,57329.0,57328.0,0.015913]
[1720775759841,2.17643721,57329.0,57328.0,0.004913]
[1720775760045,2.17643721,57329.0,57328.0,0.008913]
[1720775760459,2.34667461,57329.0,57328.0,0.008913]
[1720775760665,2.34667461,57329.0,57320.0,0.10086326]
[1720775760666,0.174456,57321.0,57320.0,0.10086326]
[1720775760868,0.174456,57321.0,57320.0,0.30384854]
[1720775761083,0.338656,57321.0,57320.0,0.00397653]
[1720775761280,0.338656,57321.0,57320.0,0.000913]
[1720775761487,0.351696,57321.0,57320.0,0.000913]
[1720775761905,0.352696,57321.0,57320.0,0.014913]
[1720775762078,0.339656,57321.0,57320.0,0.014913]
[1720775762446,0.338656,57321.0,57320.0,0.000913]
[1720775762851,0.339656,57321.0,57320.0,0.007913]
[1720775763172,0.352696,57321.0,57320.0,0.007913]
[1720775763499,0.353696,57321.0,57320.0,0.021913]
[1720775763692,0.352696,57321.0,57320.0,0.007913]
[1720775763897,0.353696,57321.0,57320.0,0.013913]
[1720775764390,0.3545707,57321.0,57320.0,0.013913]
[1720775766099,0.3415307,57321.0,57320.0,0.013913]
[1720775769168,0.3545707,57321.0,57320.0,0.013913]
[1720775769990,0.3415307,57321.0,57320.0,0.013913]
[1720775771038,0.31854106,57321.0,57320.0,0.013913]
[1720775771569,0.33812125,57321.0,57320.0,0.013913]
[1720775772574,0.35116125,57321.0,57320.0,0.013913]
[1720775773496,0.33812125,57321.0,57320.0,0.013913]
[1720775774352,0.35116125,57321.0,57320.0,0.013913]
[1720775774752,0.39460737,57321.0,57320.0,0.013913]
[1720775776589,0.47620737,57321.0,57320.0,0.013913]
[1720775777279,0.47620737,57321.0,57315.0,0.1]
[1720775777280,0.01304,57315.0,57313.0,0.00306353]
[1720775777480,0.09464,57314.0,57313.0,0.00306353]
[1720775777593,0.0816,57314.0,57311.0,0.00285633]
[1720775777800,0.09464,57314.0,57311.0,0.00285633]
[1720775778205,0.01304,57312.0,57311.0,0.00285633]
[1720775780125,0.01404,57312.0,57311.0,0.01285633]
[1720775780260,0.01304,57312.0,57311.0,0.00285633]
[1720775780664,0.01404,57312.0,57311.0,0.00285633]
[1720775781343,0.0159147,57312.0,57311.0,0.00285633]
[1720775781680,0.0149147,57312.0,57311.0,0.00285633]
[1720775782110,0.0159147,57312.0,57311.0,0.00285633]
[1720775784023,0.04991617,57312.0,57311.0,0.00285633]
[1720775784308,0.14991617,57312.0,57311.0,0.00285633]
[1720775784502,0.1028747,57312.0,57311.0,0.00285633]
[1720775784839,0.1844747,57312.0,57311.0,0.00285633]
[1720775785546,0.0844747,57312.0,57311.0,0.00285633]
[1720775789749,0.0844747,57312.0,57311.0,0.00281208]
[1720775789959,0.0844747,57312.0,57311.0,0.46259383]
[1720775789960,0.0028747,57312.0,57311.0,0.46259383]
[1720775790155,0.0028747,57312.0,57311.0,0.6272682]
[1720775790352,0.0028747,57312.0,57311.0,0.56254409]
[1720775790557,0.0028747,57312.0,57311.0,0.63814409]
[1720775792498,0.0844747,57312.0,57311.0,0.16666234]
[1720775792702,0.0844747,57312.0,57311.0,0.16972587]
[1720775793123,0.0844747,57312.0,57311.0,0.16666234]
[1720775793636,0.0844747,57312.0,57311.0,0.10276234]
[1720775794404,0.0844747,57312.0,57311.0,0.46234409]
[1720775794603,0.0028747,57312.0,57311.0,0.54524409]
[1720775795191,0.0028747,57312.0,57311.0,0.44928409]
[1720775795396,0.0028747,57312.0,57311.0,0.16646234]
[1720775795621,0.0028747,57312.0,57311.0,0.46234409]
[1720775798060,0.0844747,57312.0,57311.0,0.46234409]
[1720775800286,0.0844747,57312.0,57311.0,0.36638409]
[1720775802151,0.18752184,57312.0,57311.0,0.30268409]
[1720775802346,0.18752184,57312.0,57311.0,0.00281208]
[1720775802347,0.28752184,57312.0,57311.0,0.00281208]
[1720775802549,0.30056184,57312.0,57311.0,0.00281208]
[1720775803476,0.01304,57309.0,57308.0,0.009097]
[1720775803676,0.23604,57309.0,57308.0,0.009097]
[1720775803880,0.33604,57309.0,57308.0,0.009097]
[1720775804078,0.829469,57309.0,57308.0,0.009097]
[1720775804661,0.843469,57309.0,57308.0,0.010097]
[1720775804886,0.114,57309.0,57308.0,0.075897]
[1720775805086,0.014,57309.0,57308.0,0.075897]
[1720775805465,0.014,57309.0,57308.0,0.010097]
[1720775805673,0.023,57309.0,57308.0,0.010097]
[1720775805842,0.123,57309.0,57308.0,0.010097]
[1720775806062,0.109,57309.0,57308.0,0.009097]
[1720775806477,0.1175,57309.0,57308.0,0.010097]
[1720775806829,0.1183747,57309.0,57308.0,0.010097]
[1720775807041,0.29240169,57309.0,57308.0,0.010097]
[1720775807242,0.51304369,57309.0,57308.0,0.010097]
[1720775807792,0.4350787,57309.0,57308.0,0.010097]
[1720775807969,0.4481187,57309.0,57308.0,0.010097]
[1720775809227,0.2741147,57309.0,57308.0,0.010097]
[1720775809476,0.2103147,57309.0,57308.0,0.010097]
[1720775809836,0.1972747,57309.0,57308.0,0.010097]
[1720775810013,0.1183747,57309.0,57308.0,0.076597]
[1720775810227,0.0999747,57309.0,57308.0,0.076597]
[1720775810806,0.13976769,57309.0,57308.0,0.010097]
[1720775811212,0.23976769,57309.0,57308.0,0.010097]
[1720775811592,0.46049769,57309.0,57308.0,0.010097]
[1720775811802,0.54019769,57309.0,57308.0,0.010097]
[1720775812005,0.44745769,57309.0,57308.0,0.010097]
[1720775812243,0.1183747,57309.0,57308.0,0.076597]
[1720775812446,0.0183747,57309.0,57308.0,0.47247875]
[1720775812656,0.1183747,57309.0,57308.0,0.47247875]
[1720775813705,0.0183747,57309.0,57308.0,0.47247875]
[1720775818338,0.0183747,57309.0,57308.0,0.73434336]
[1720775818564,0.0183747,57309.0,57308.0,0.79434336]
[1720775819268,0.0183747,57309.0,57308.0,0.88309713]
[1720775819520,0.0183747,57309.0,57308.0,0.79434336]
[1720775819521,0.0108747,57309.0,57308.0,0.79434336]
[1720775819758,0.0088747,57309.0,57308.0,0.79640689]
[1720775819958,0.0098747,57309.0,57308.0,0.80240689]
[1720775820380,0.0088747,57309.0,57308.0,0.92341771]
[1720775820588,0.0098747,57309.0,57308.0,0.88194336]
[1720775821235,0.0018747,57309.0,57308.0,0.88194336]
[1720775821590,0.0028747,57309.0,57308.0,0.88694336]
[1720775822848,0.0028747,57309.0,57308.0,0.66022901]
[1720775824264,0.0028747,57309.0,57308.0,0.72022901]
[1720775824475,0.0028747,57309.0,57308.0,0.80182901]
[1720775830974,0.0028747,57309.0,57308.0,0.72022901]
[1720775836236,0.0028747,57309.0,57308.0,0.88260783]
[1720775836663,0.0028747,57309.0,57308.0,0.88509921]
[1720775836946,0.0028747,57309.0,57308.0,0.88260783]
[1720775837775,0.0028747,57309.0,57308.0,1.40609383]
[1720775837975,0.0028747,57309.0,57308.0,1.40793367]
[1720775838298,0.0028747,57309.0,57308.0,1.24555485]
[1720775839172,0.0028747,57309.0,57308.0,0.72206885]
[1720775839385,0.0028747,57309.0,57308.0,0.89656385]
[1720775840506,0.0028747,57309.0,57308.0,0.72022901]
[1720775842378,0.0028747,57309.0,57308.0,0.82749339]
[1720775843325,0.00283296,57309.0,57308.0,0.82749339]
[1720775843772,0.00360885,57309.0,57308.0,0.82749339]
[1720775846906,0.00360885,57309.0,57308.0,1.00198839]
[1720775847108,0.00360885,57309.0,57308.0,1.00505192]
[1720775847718,0.00360885,57309.0,57308.0,1.20505192]
[1720775848216,0.00360885,57309.0,57308.0,1.00505192]
[1720775848417,0.00360885,57309.0,57308.0,0.83055692]
[1720775849215,0.00360885,57309.0,57308.0,0.82749339]
[1720775849451,0.00360885,57309.0,57308.0,0.82968138]
[1720775849642,0.00360885,57309.0,57308.0,0.82749339]
[1720775849785,0.00360885,57309.0,57308.0,0.82945937]
[1720775850220,0.00360885,57309.0,57308.0,0.82749339]
[1720775850466,0.00360885,57309.0,57308.0,0.82934549]
[1720775850670,0.00360885,57309.0,57308.0,0.72208111]
[1720775850834,0.00360885,57309.0,57308.0,0.72022901]
[1720775851976,0.00360885,57309.0,57308.0,0.72329254]
[1720775852182,0.00360885,57309.0,57308.0,0.72022901]
[1720775852390,0.02189427,57326.0,57322.0,0.04696]
[1720775852612,0.0816,57328.0,57323.0,0.1]
[1720775852809,0.0816,57328.0,57325.0,0.19992175]
[1720775853241,0.0816,57328.0,57326.0,0.00306353]
[1720775853663,0.00893647,57326.0,57325.0,0.19992175]
[1720775854106,0.0816,57328.0,57325.0,0.19992175]
[1720775854278,0.013,57326.0,57325.0,0.20092175]
[1720775854716,0.1,57326.0,57325.0,0.20092175]
[1720775855468,0.1776,57326.0,57325.0,0.20092175]
[1720775855865,0.1776,57326.0,57325.0,0.19992175]
[1720775856118,0.1776,57326.0,57325.0,0.29588175]
[1720775856323,0.1886,57326.0,57325.0,0.20092175]
[1720775856903,0.2006,57326.0,57325.0,0.29788175]
[1720775857102,0.2006,57326.0,57325.0,0.20192175]
[1720775861451,0.2006,57326.0,57325.0,0.29788175]
[1720775862860,0.023,57326.0,57325.0,0.54761521]
[1720775863023,0.023,57326.0,57325.0,0.60761521]
[1720775863233,0.023,57326.0,57325.0,0.74751521]
[1720775863844,0.012,57326.0,57325.0,0.92095821]
[1720775864042,0.012,57326.0,57325.0,0.74751521]
[1720775864391,0.011,57326.0,57325.0,0.74651521]
[1720775864689,0.011,57326.0,57325.0,0.74851521]
[1720775864826,0.011,57326.0,57325.0,0.74651521]
[1720775865023,0.012,57326.0,57325.0,0.75551521]
[1720775865481,0.001,57326.0,57325.0,0.75451521]
[1720775865670,0.01625519,57331.0,57330.0,0.69613201]
[1720775865930,0.00083,57334.0,57333.0,0.39588175]
[1720775866128,0.00083,57334.0,57333.0,0.49583201]
[1720775867319,0.00083,57334.0,57333.0,0.49683201]
[1720775868026,0.00083,57334.0,57333.0,0.55973201]
[1720775868262,0.00083,57334.0,57333.0,0.86408653]
[1720775868457,0.01894657,57334.0,57333.0,0.86408653]
[1720775868643,0.00083,57334.0,57333.0,0.86308653]
[1720775868808,0.00083,57334.0,57333.0,0.86408653]
[1720775869034,0.00083,57334.0,57333.0,0.86808653]
[1720775869213,0.00083,57334.0,57333.0,0.86708653]
[1720775869766,0.00083,57334.0,57333.0,0.87108653]
[1720775871324,0.00083,57334.0,57333.0,0.86708653]
[1720775871534,0.00183,57334.0,57333.0,0.87208653]
[1720775871720,0.00283,57334.0,57333.0,0.88108653]
[1720775872549,0.00283,57334.0,57333.0,1.05550553]
[1720775873174,0.00283,57334.0,57333.0,0.97015101]
[1720775873377,0.00283,57334.0,57333.0,1.66782901]
[1720775873540,0.00283,57334.0,57333.0,1.86782901]
[1720775874759,0.00183,57334.0,57333.0,1.85882901]
[1720775875056,0.00083,57334.0,57333.0,1.98959608]
[1720775875262,0.00283,57334.0,57333.0,2.01759608]
[1720775875868,0.00283,57334.0,57333.0,2.46643508]
[1720775876066,0.00283,57334.0,57333.0,2.58943508]
[1720775877604,0.00083,57334.0,57333.0,2.56143508]
[1720775877806,0.00083,57334.0,57333.0,2.57543508]
[1720775878034,0.00083,57334.0,57333.0,2.58943508]
[1720775880809,0.00083,57334.0,57333.0,2.77343508]
[1720775885260,0.00083,57334.0,57333.0,2.67343508]
[1720775885462,0.00083,57334.0,57333.0,2.79081631]
[1720775887038,0.00083,57334.0,57333.0,0.66413201]
[1720775887245,0.00083,57334.0,57333.0,0.60543201]
[1720775887443,0.00083,57334.0,57333.0,0.66543201]
[1720775891295,0.14393,57334.0,57333.0,0.32792175]
[1720775891505,0.22553,57334.0,57333.0,0.12795026]
[1720775891711,0.36142935,57334.0,57333.0,0.028]
[1720775891904,0.01304,57331.0,57325.0,0.000913]
[1720775892106,0.1458,57326.0,57325.0,0.000913]
[1720775892332,0.2458,57326.0,57325.0,0.000913]
[1720775892772,0.2458,57326.0,57325.0,0.10086326]
[1720775893204,0.2458,57326.0,57325.0,0.39674501]
[1720775893628,0.2458,57326.0,57325.0,0.39874501]
[1720775894749,0.2458,57326.0,57325.0,0.49874501]
[1720775895296,0.2458,57326.0,57325.0,0.40078501]
[1720775895728,0.2528,57326.0,57325.0,0.40078501]
[1720775895928,0.2458,57326.0,57325.0,0.40078501]
[1720775896333,0.2478,57326.0,57325.0,0.40078501]
[1720775896545,0.2478,57326.0,57325.0,0.20086326]
[1720775896737,0.2538,57326.0,57325.0,0.40078501]
[1720775896917,0.2538,57326.0,57325.0,0.20086326]
[1720775897118,0.2478,57326.0,57325.0,0.20086326]
[1720775897502,0.2488,57326.0,57325.0,0.20086326]
[1720775898101,0.26668967,57326.0,57325.0,0.20086326]
[1720775899380,0.00030909,57334.0,57328.0,0.1]
[1720775899979,0.00306353,57333.0,57328.0,0.29992175]
[1720775900590,0.00306353,57333.0,57328.0,0.30092175]
[1720775900796,0.00306353,57333.0,57332.0,0.40892175]
[1720775901017,0.02493702,57334.0,57333.0,0.19992175]
[1720775901227,0.01793702,57334.0,57333.0,0.19992175]
[1720775901433,0.01793702,57334.0,57333.0,0.19192175]
[1720775901434,0.00030909,57334.0,57333.0,0.19192175]
[1720775901871,0.00030909,57334.0,57332.0,0.1]
[1720775902583,0.00306353,57333.0,57332.0,0.1]
[1720775902880,0.00306353,57333.0,57332.0,0.29192175]
[1720775903082,0.00306353,57333.0,57332.0,0.29292175]
[1720775903264,0.00306353,57333.0,57332.0,0.101]
[1720775903682,0.00306353,57333.0,57332.0,0.29292175]
[1720775903823,0.11430909,57334.0,57332.0,0.101]
[1720775904021,0.00306353,57333.0,57332.0,0.101]
[1720775904453,0.10730909,57334.0,57332.0,0.101]
[1720775904660,0.00906353,57333.0,57332.0,0.102]
[1720775904862,0.00906353,57333.0,57332.0,0.11072204]
[1720775905062,0.006,57333.0,57332.0,0.11072204]
[1720775905289,0.10030909,57334.0,57332.0,0.10872204]
[1720775905493,0.00306353,57333.0,57332.0,0.10872204]
[1720775906005,0.008,57333.0,57332.0,0.10972204]
[1720775906579,0.01106353,57333.0,57332.0,0.10972204]
[1720775906787,0.01106353,57333.0,57332.0,0.11072204]
[1720775907152,0.00306353,57333.0,57332.0,0.10872204]
[1720775907727,0.00306353,57333.0,57332.0,0.10972204]
[1720775908529,0.00306353,57333.0,57332.0,0.11072204]
[1720775908733,0.00306353,57333.0,57332.0,0.101]
[1720775909095,0.01106353,57333.0,57332.0,0.102]
[1720775909953,0.01189353,57333.0,57332.0,0.102]
[1720775910358,0.01189353,57333.0,57332.0,0.29392175]
[1720775910745,0.00883,57333.0,57332.0,0.102]
[1720775911166,0.00883,57333.0,57332.0,0.29392175]
[1720775911577,0.00883,57333.0,57332.0,0.002]
[1720775911792,0.04329314,57333.0,57332.0,0.002]
[1720775912004,0.04329314,57333.0,57325.0,0.000913]
[1720775912005,0.01189353,57333.0,57325.0,0.000913]
[1720775912218,0.02960495,57333.0,57325.0,0.000913]
[1720775912651,0.0542,57330.0,57325.0,0.000913]
[1720775912850,0.0542,57330.0,57326.0,0.09995026]
[1720775913060,0.1542,57330.0,57326.0,0.09995026]
[1720775914996,0.1602,57330.0,57326.0,0.09995026]
[1720775915387,0.1662,57330.0,57326.0,0.10095026]
[1720775916856,0.112,57330.0,57326.0,0.10095026]
[1720775917054,0.1,57329.0,57326.0,0.10095026]
[1720775917254,0.012,57330.0,57326.0,0.10095026]
[1720775917486,0.012,57330.0,57327.0,0.1]
[1720775917690,0.012,57330.0,57327.0,0.29192175]
[1720775917912,0.012,57330.0,57328.0,0.19192175]
[1720775920413,0.0811,57331.0,57327.0,0.1]
[1720775921302,0.0881,57331.0,57328.0,0.001]
[1720775921713,0.0811,57331.0,57327.0,0.1]
[1720775921841,0.0811,57331.0,57327.0,0.29292175]
[1720775921842,0.0881,57331.0,57327.0,0.29292175]
[1720775922271,0.0811,57331.0,57327.0,0.29192175]
[1720775922472,0.1,57330.0,57328.0,0.19292175]
[1720775922695,0.007,57331.0,57328.0,0.19292175]
[1720775923036,0.01762459,57334.0,57327.0,0.29192175]
[1720775923172,0.007,57331.0,57327.0,0.29292175]
[1720775923377,0.007,57331.0,57327.0,0.101]
[1720775924681,0.01762459,57334.0,57327.0,0.1]
[1720775928203,0.0816,57328.0,57327.0,0.163]
[1720775928544,0.0816,57328.0,57327.0,0.164]
[1720775928695,0.0816,57328.0,57327.0,0.163]
[1720775929102,0.0836,57328.0,57327.0,0.163]
[1720775931900,0.0836,57328.0,57327.0,0.35492175]
[1720775932512,0.0836,57328.0,57327.0,0.163]
[1720775937058,0.10056559,57328.0,57326.0,0.09995026]
[1720775937255,0.1,57327.0,57326.0,0.09995026]
[1720775939812,0.05457118,57336.0,57326.0,0.09995026]
[1720775940022,0.0816,57327.0,57326.0,0.09995026]
[1720775940449,0.0816,57327.0,57326.0,0.37507201]
[1720775940660,0.07180485,57336.0,57328.0,0.19192175]
[1720775940860,0.0816,57329.0,57328.0,0.19192175]
[1720775941110,0.40630628,57343.0,57328.0,0.2]
[1720775941320,1.500124,57342.0,57328.0,0.2]
[1720775941530,0.069963,57337.0,57328.0,0.2]
[1720775941725,0.425474,57336.0,57329.0,0.2]
[1720775942061,0.425474,57336.0,57329.0,0.196]
[1720775942062,0.1,57335.0,57329.0,0.196]
[1720775942498,0.069963,57337.0,57329.0,0.196]
[1720775942711,0.615129,57336.0,57329.0,0.196]
[1720775942888,0.1,57335.0,57328.0,0.196]
[1720775943399,0.106,57335.0,57329.0,0.001]
[1720775943565,0.1,57335.0,57327.0,0.196913]
[1720775943740,0.1,57335.0,57329.0,0.196]
[1720775943954,0.006,57336.0,57329.0,0.198]
[1720775944135,0.610932,57335.0,57329.0,0.198]
[1720775944673,0.4466685,57335.0,57329.0,0.002]
[1720775944842,0.006,57336.0,57331.0,0.00872128]
[1720775945048,0.069963,57337.0,57331.0,0.00872128]
[1720775945049,0.490043,57335.0,57331.0,0.00872128]
[1720775945270,0.069963,57337.0,57331.0,0.00872128]
[1720775945271,0.494241,57336.0,57331.0,0.00872128]
[1720775945467,0.004,57335.0,57331.0,0.00872128]
[1720775946078,0.004,57335.0,57331.0,0.00972128]
[1720775946279,0.004,57336.0,57331.0,0.00972128]
[1720775946484,0.546641,57335.0,57331.0,0.00972128]
[1720775946653,0.546641,57335.0,57331.0,0.01072128]
[1720775947132,0.1,57334.0,57331.0,0.01072128]
[1720775947925,0.1,57334.0,57331.0,0.002]
[1720775948060,0.004,57336.0,57331.0,0.002]
[1720775948261,0.253187,57335.0,57327.0,0.000913]
[1720775948459,0.1,57334.0,57327.0,0.000913]
[1720775948723,0.104,57334.0,57331.0,0.002]
[1720775948903,0.1,57334.0,57331.0,0.001]
[1720775949229,0.004,57336.0,57327.0,0.000913]
[1720775949569,0.43024135,57335.0,57327.0,0.001913]
[1720775949788,0.0816,57328.0,57327.0,0.001]
[1720775950001,0.494017,57328.0,57325.0,0.000913]
[1720775950207,0.0816,57328.0,57325.0,0.000913]
[1720775950967,0.0816,57328.0,57326.0,0.09995026]
[1720775951815,0.0816,57328.0,57327.0,0.001]
[1720775952025,0.0816,57328.0,57326.0,0.09995026]
[1720775952225,0.1,57338.0,57326.0,0.09995026]
[1720775952450,0.0816,57327.0,57326.0,0.09995026]
[1720775953427,0.0816,57327.0,57326.0,0.10095026]
[1720775954622,0.0816,57327.0,57326.0,0.09995026]
[1720775955037,0.0856,57327.0,57326.0,0.09995026]
[1720775956126,0.0856,57327.0,57326.0,0.24295026]
[1720775956332,0.0856,57327.0,57326.0,0.44295026]
[1720775956527,0.004,57327.0,57326.0,0.55195026]
[1720775958494,0.02069197,57327.0,57326.0,0.71723659]
[1720775958702,0.004,57327.0,57326.0,0.65195026]
[1720775959091,0.004,57327.0,57326.0,0.54295026]
[1720775962516,0.0816,57329.0,57328.0,0.1]
[1720775962689,0.0816,57329.0,57328.0,0.099]